bitfinex-derivatives/quotes_ETHF0:USTF0_20260307
["timestamp","ask_amount","ask_price","bid_price","bid_amount"]
[1772895145631,0.00356904,1987.9,1987.2,7.82407539]
[1772895145831,6.592,1987.8,1987.3,0.60410295]
[1772895146234,0.00356904,1987.9,1987.3,0.60410295]
[1772895146435,6.59556904,1987.9,1987.3,0.60410295]
[1772895147337,0.00356904,1987.9,1987.3,0.60410295]
[1772895147540,6.59556904,1987.9,1987.3,0.60410295]
[1772895147736,6.59556904,1987.9,1987.2,7.82407539]
[1772895147935,6.59556904,1987.9,1987.2,0.60419959]
[1772895149139,0.00356904,1987.9,1987.0,49.22985063]
[1772895149340,0.00356904,1987.9,1986.9,7.82407539]
[1772895149537,5.78154512,1987.8,1987.0,0.60577524]
[1772895149837,6.592,1987.7,1987.0,0.60577524]
[1772895150237,6.592,1987.7,1986.8,8.42985063]
[1772895150441,6.592,1987.7,1986.8,0.60577524]
[1772895152142,6.592,1987.7,1986.7,48.63033663]
[1772895152143,6.592,1987.7,1986.7,41.41213886]
[1772895152343,6.592,1987.7,1986.7,0.61213886]
[1772895156852,0.00356904,1987.9,1986.7,0.61213886]
[1772895157049,12.36262076,1987.8,1986.7,0.61213886]
[1772895157245,6.593,1987.8,1986.7,0.61213886]
[1772895162454,5.76724661,1987.7,1986.7,0.61213886]
[1772895162750,6.593,1987.8,1986.7,0.61213886]
[1772895163053,5.7671612,1987.7,1986.7,0.61213886]
[1772895163249,6.593,1987.8,1986.7,0.61213886]
[1772895166550,0.00356904,1987.9,1986.8,0.60523626]
[1772895166750,12.36266738,1987.8,1986.8,0.60523626]
[1772895166952,6.594,1987.8,1986.8,0.60523626]
[1772895167146,6.594,1987.8,1986.9,0.60563382]
[1772895176159,5.77972961,1987.7,1986.9,0.60563382]
[1772895176361,6.594,1987.8,1986.9,0.60563382]
[1772895176556,5.77972961,1987.7,1986.9,0.60563382]
[1772895176762,6.594,1987.8,1986.9,0.60563382]
[1772895176962,5.77972961,1987.7,1986.9,0.60563382]
[1772895177162,6.594,1987.8,1986.9,0.60563382]
[1772895177363,5.78224135,1987.7,1986.9,0.60563382]
[1772895177567,6.594,1987.8,1986.9,0.60563382]
[1772895177867,5.78224135,1987.7,1986.9,0.60563382]
[1772895178066,6.594,1987.8,1986.9,0.60563382]
[1772895178266,5.78561047,1987.7,1986.9,0.60563382]
[1772895178467,6.594,1987.8,1986.9,0.60563382]
[1772895178670,5.78561047,1987.7,1986.9,0.60563382]
[1772895178958,6.594,1987.8,1986.9,0.60563382]
[1772895179164,5.78561047,1987.7,1986.9,0.60563382]
[1772895179364,6.594,1987.8,1986.9,0.60563382]
[1772895179564,5.78812685,1987.7,1986.9,0.60563382]
[1772895179762,6.594,1987.8,1986.9,0.60563382]
[1772895179964,5.78812685,1987.7,1986.9,0.60563382]
[1772895180167,5.7888494,1987.6,1986.9,0.60563382]
[1772895180366,6.594,1987.8,1986.9,0.60563382]
[1772895180574,5.7888494,1987.7,1986.9,0.60563382]
[1772895180765,5.7888494,1987.6,1986.9,0.60563382]
[1772895180967,6.594,1987.6,1986.9,0.60563382]
[1772895182464,0.00356904,1987.9,1986.9,2.37724152]
[1772895182671,6.594,1987.8,1987.3,0.60764077]
[1772895183271,6.594,1987.7,1987.3,0.60764077]
[1772895188079,0.00356904,1987.9,1987.3,0.60764077]
[1772895188278,6.594,1987.8,1987.3,0.60764077]
[1772895188979,6.594,1987.8,1987.0,0.60465243]
[1772895191283,6.594,1987.7,1987.2,0.60299277]
[1772895191584,6.594,1987.7,1987.1,2.37556157]
[1772895193087,6.594,1987.7,1986.9,0.60368692]
[1772895193678,6.594,1987.7,1986.9,2.37625572]
[1772895200889,6.594,1987.7,1986.9,1.7725688]
[1772895201088,6.594,1987.7,1986.8,0.60387561]
[1772895202489,7.55623028,1987.6,1986.7,1.77883004]
[1772895202783,1.7725688,1987.6,1986.7,1.77883004]
[1772895203093,1.7725688,1987.6,1986.7,2.38337708]
[1772895203294,6.594,1987.7,1986.8,0.60454704]
[1772895203585,5.7833843,1987.6,1986.8,0.60454704]
[1772895203792,6.594,1987.7,1986.8,0.60454704]
[1772895203993,5.7833843,1987.6,1986.8,0.60454704]
[1772895204196,6.594,1987.7,1986.8,0.60454704]
[1772895204392,5.78312942,1987.6,1986.8,0.60454704]
[1772895204593,6.594,1987.7,1986.8,0.60454704]
[1772895204795,5.78312942,1987.6,1986.8,0.60454704]
[1772895205093,6.594,1987.7,1986.8,0.60454704]
[1772895205293,5.78288327,1987.6,1986.8,0.60454704]
[1772895205493,6.594,1987.7,1986.8,0.60454704]
[1772895205890,6.594,1987.6,1987.0,0.60407472]
[1772895208893,0.00356904,1987.9,1987.0,0.60407472]
[1772895209095,12.37853164,1987.8,1987.0,0.60407472]
[1772895209296,6.596,1987.8,1987.0,0.60407472]
[1772895209694,6.596,1987.8,1986.7,0.00626124]
[1772895209695,6.84754,1987.8,1986.7,0.00626124]
[1772895209894,6.24286369,1987.7,1986.8,0.60434912]
[1772895210196,5.78257805,1987.6,1986.8,0.60434912]
[1772895211299,6.599,1987.5,1986.8,0.60434912]
[1772895211800,6.599,1987.5,1986.7,2.38068016]
[1772895212401,6.599,1987.5,1986.8,0.60185012]
[1772895214195,1.7725688,1987.6,1986.8,0.60185012]
[1772895214401,6.604,1987.5,1986.8,0.60185012]
[1772895214699,0.01142551,1987.4,1986.8,0.60185012]
[1772895216199,6.607,1987.3,1987.0,0.59355041]
[1772895216495,0.01142551,1987.2,1986.9,0.59355041]
[1772895218001,6.64093043,1987.3,1986.9,0.59355041]
[1772895219504,0.03393043,1987.3,1986.9,0.59355041]
[1772895219698,6.64593043,1987.3,1986.9,0.59355041]
[1772895221398,0.07162565,1987.2,1986.7,2.36686511]
[1772895221704,0.07162565,1987.2,1986.7,0.59429631]
[1772895226208,6.621,1987.3,1987.0,0.58803507]
[1772895228504,7.16203328,1987.3,1987.0,0.58803507]
[1772895228706,0.54103328,1987.2,1986.8,0.58803507]
[1772895232116,7.17003328,1987.2,1986.8,0.58803507]
[1772895232307,0.54103328,1987.2,1986.8,0.58803507]
[1772895232506,6.629,1987.2,1986.8,0.58803507]
[1772895235116,0.54103328,1987.3,1986.8,0.58803507]
[1772895235317,0.54103328,1987.6,1987.2,0.58803507]
[1772895235615,7.17603328,1987.5,1987.2,0.58803507]
[1772895235815,7.17703328,1987.6,1987.3,2.36060387]
[1772895236208,0.54103328,1987.6,1987.3,2.36060387]
[1772895236515,7.17903328,1987.7,1987.4,0.58803507]
[1772895236813,7.18360232,1987.9,1987.6,0.58803507]
[1772895239115,0.54103328,1988.0,1987.7,0.58803507]
[1772895239315,7.18703328,1988.1,1987.7,0.58803507]
[1772895239516,0.54103328,1988.0,1987.7,0.58803507]
[1772895240113,0.54505479,1988.0,1987.7,0.58803507]
[1772895243321,7.20605479,1988.0,1987.7,0.58803507]
[1772895245325,0.54505479,1988.0,1987.7,0.58803507]
[1772895245625,7.21405479,1988.0,1987.7,0.58803507]
[1772895245825,0.54505479,1988.0,1987.7,0.58803507]
[1772895246123,7.21605479,1988.0,1987.7,0.58803507]
[1772895247626,6.67502151,1988.0,1987.7,0.58803507]
[1772895247826,7.75019569,1988.0,1987.7,0.58803507]
[1772895248623,1.07919569,1988.0,1987.7,0.58803507]
[1772895248925,7.75919569,1988.0,1987.7,0.58803507]
[1772895250930,1.07517418,1987.9,1987.4,1.09448469]
[1772895251223,1.07517418,1987.8,1987.1,1.09448469]
[1772895254618,1.07517418,1987.8,1986.7,7.83033663]
[1772895254822,1.07517418,1987.8,1986.8,1.09448469]
[1772895255028,1.07517418,1987.6,1986.8,1.09448469]
[1772895256023,1.07517418,1987.7,1986.8,1.09448469]
[1772895259025,1.07517418,1987.6,1986.8,1.09448469]
[1772895263933,1.07517418,1987.8,1986.9,1.09448469]
[1772895265330,1.07919569,1988.0,1987.0,1.09448469]
[1772895266137,1.07919569,1988.0,1987.2,1.09448469]
[1772895270135,1.07919569,1988.0,1987.3,1.09448469]
[1772895270729,0.00402151,1988.0,1987.3,1.09448469]
[1772895272038,0.00402151,1988.0,1987.4,40.8]
[1772895272236,0.00402151,1988.0,1987.5,1.06481217]
[1772895276941,1.06490886,1988.2,1987.5,1.06481217]
[1772895277537,1.06490886,1988.2,1987.6,40.8]
[1772895277737,1.06490886,1988.2,1987.7,1.06481217]
[1772895278040,1.06949096,1988.2,1987.7,1.06481217]
[1772895281641,1.06949096,1988.2,1987.4,1.06481217]
[1772895284152,1.06949096,1988.2,1987.2,49.68888756]
[1772895284746,1.06949096,1988.2,1987.3,1.06481217]
[1772895301765,0.97103366,1988.0,1987.1,8.73995314]
[1772895302162,0.90514049,1987.8,1987.1,0.91587775]
[1772895304665,0.90514049,1988.1,1987.1,0.91587775]
[1772895304872,0.90514049,1988.0,1987.1,0.91587775]
[1772895305262,0.90972259,1988.2,1987.2,0.91185302]
[1772895312379,0.90972259,1988.2,1987.3,0.91185302]
[1772895314481,0.90972259,1988.2,1987.7,0.91185302]
[1772895317275,0.90972259,1988.2,1987.6,2.68642856]
[1772895317478,0.90972259,1988.2,1987.7,0.91507504]
[1772895336600,0.90972259,1988.2,1987.5,0.85942166]
[1772895340800,0.83138253,1988.1,1987.5,0.85942166]
[1772895341196,0.0045821,1988.2,1987.5,0.85942166]
[1772895341499,0.0045821,1988.2,1987.8,0.85942166]
[1772895348410,0.83596463,1988.2,1987.8,0.85942166]
[1772895349709,0.0045821,1988.2,1987.8,0.85942166]
[1772895354118,7.59938253,1988.5,1987.8,0.85942166]
[1772895354321,5.7725605,1988.4,1987.8,0.85942166]
[1772895354522,7.59938253,1988.5,1987.8,0.85942166]
[1772895354722,5.7725605,1988.4,1987.8,0.85942166]
[1772895355022,7.59938253,1988.5,1987.8,0.85942166]
[1772895355221,5.7725605,1988.4,1987.8,0.85942166]
[1772895355421,7.60538253,1988.5,1987.8,0.85942166]
[1772895355614,5.77233398,1988.4,1987.8,0.85942166]
[1772895355818,0.83138253,1988.4,1987.8,0.85942166]
[1772895366531,0.83138253,1988.4,1987.5,1.77135352]
[1772895366731,0.83138253,1988.4,1987.6,0.82097613]
[1772895367127,0.83210828,1988.3,1987.6,0.82097613]
[1772895387454,0.83210828,1988.1,1987.4,0.82097613]
[1772895387656,0.83210828,1987.9,1987.4,0.82097613]
[1772895389554,0.83210828,1987.9,1987.0,7.80516349]
[1772895389856,0.83210828,1987.9,1987.1,0.82097613]
[1772895393258,0.71054753,1987.7,1987.1,0.82097613]
[1772895393651,0.71054753,1987.9,1987.1,0.82097613]
[1772895393957,0.71054753,1987.8,1987.1,0.82097613]
[1772895397057,6.865,1987.9,1987.1,0.82097613]
[1772895397257,6.869,1988.2,1987.1,0.82097613]
[1772895397952,7.57954753,1988.2,1987.1,0.82097613]
[1772895398157,0.71054753,1988.1,1987.1,0.82097613]
[1772895403055,0.71054753,1988.3,1987.1,0.82097613]
[1772895403255,0.71054753,1988.3,1987.2,0.762658]
[1772895403459,0.71054753,1988.3,1987.3,0.762658]
[1772895410878,0.71054753,1988.4,1987.3,0.762658]
[1772895424289,0.71054753,1988.4,1987.4,0.66404078]
[1772895427391,0.71054753,1988.4,1987.5,0.66404078]
[1772895428491,0.69231026,1988.3,1987.5,0.66404078]
[1772895440003,0.69231026,1988.1,1987.5,0.66404078]
[1772895441206,0.69231026,1987.7,1987.3,0.66404078]
[1772895442695,0.69231026,1988.0,1987.3,0.66404078]
[1772895450606,1.77166047,1988.2,1987.3,0.66404078]
[1772895450812,0.6732572,1988.1,1987.4,0.66404078]
[1772895451715,0.66798177,1988.3,1987.4,0.66404078]
[1772895458110,0.66798177,1988.3,1987.5,1.77166047]
[1772895458416,0.61676709,1988.2,1987.6,0.61483687]
[1772895475926,1.77166047,1988.2,1987.6,0.61483687]
[1772895476130,0.60264279,1988.1,1987.3,9.57682396]
[1772895476333,0.60264279,1988.1,1987.4,0.61483687]
[1772895483534,0.56650032,1987.7,1987.3,0.55729563]
[1772895489242,0.56650032,1987.7,1987.2,0.55729563]
[1772895492349,0.56650032,1987.9,1987.2,0.55729563]
[1772895494252,1.77166047,1988.3,1987.4,0.55729563]
[1772895494253,0.56650032,1988.3,1987.4,0.55729563]
[1772895522479,0.56650032,1988.3,1987.5,0.54146459]
[1772895531386,0.56650032,1988.3,1987.6,0.54146459]
[1772895539093,0.56650032,1988.3,1987.4,8.34662808]
[1772895539485,0.56650032,1988.3,1987.5,0.54146459]
[1772895548395,0.58945208,1988.2,1987.5,0.54146459]
[1772895555698,0.58945208,1988.2,1987.3,7.80516349]
[1772895555899,0.58945208,1988.0,1987.4,0.59472323]
[1772895556801,0.58945208,1987.9,1987.4,0.59472323]
[1772895560106,0.58945208,1987.9,1987.2,0.59472323]
[1772895562507,0.58945208,1987.7,1987.2,0.59472323]
[1772895564103,0.58945208,1987.8,1987.2,0.59472323]
[1772895581520,0.55468811,1987.5,1987.1,0.56555635]
[1772895581720,0.55468811,1987.6,1987.1,0.56555635]
[1772895591734,0.55468811,1987.5,1987.1,0.56555635]
[1772895591931,0.55468811,1987.3,1986.8,0.56555635]
[1772895592327,1.7723403,1987.2,1986.7,0.57181759]
[1772895592630,0.55468811,1987.1,1986.7,0.57181759]
[1772895593727,0.55468811,1987.3,1986.7,0.57181759]
[1772895598942,0.55468811,1987.7,1986.7,0.57181759]
[1772895600738,0.56425879,1987.6,1986.7,0.57181759]
[1772895601439,0.56425879,1987.5,1986.7,0.57181759]
[1772895601835,1.7723403,1987.2,1986.5,0.57549646]
[1772895602037,0.56425879,1986.9,1986.5,0.57549646]
[1772895602339,0.56425879,1986.9,1986.2,0.59117875]
[1772895602540,0.57641072,1987.3,1986.5,0.59117875]
[1772895603041,0.58042182,1987.3,1986.5,0.59709037]
[1772895603440,0.58042182,1987.3,1986.7,0.59117875]
[1772895604137,0.0040111,1987.3,1986.7,0.59117875]
[1772895604743,0.0040111,1987.3,1986.9,0.59117875]
[1772895606342,0.58042182,1987.3,1986.9,0.59117875]
[1772895607443,0.57641072,1987.1,1986.5,0.59709037]
[1772895607644,0.57641072,1987.1,1986.5,0.00591162]
[1772895609549,0.57641072,1987.1,1986.5,0.59709037]
[1772895609945,0.0040111,1987.3,1986.9,0.59117875]
[1772895610146,0.58042182,1987.3,1986.9,0.59117875]
[1772895614152,0.58042182,1987.3,1986.6,0.59117875]
[1772895616346,0.58042182,1987.3,1986.5,0.00591162]
[1772895616552,0.58042182,1987.3,1986.5,0.59709037]
[1772895618349,0.57641072,1987.1,1986.5,0.00591162]
[1772895618545,0.57641072,1986.9,1986.3,0.59117875]
[1772895618751,0.57641072,1986.9,1986.2,0.59117875]
[1772895619249,0.57641072,1986.9,1986.1,0.59117875]
[1772895619652,0.57641072,1986.9,1986.1,0.59514564]
[1772895624365,0.57641072,1987.2,1986.1,0.59514564]
[1772895628663,0.57641072,1987.1,1986.1,0.59514564]
[1772895633972,0.57904283,1986.9,1986.1,0.59514564]
[1772895634371,0.57904283,1986.9,1986.1,0.00396689]
[1772895635569,0.57904283,1986.8,1986.1,0.60145575]
[1772895643574,0.57904283,1986.9,1986.1,0.60145575]
[1772895646581,0.57904283,1986.9,1986.2,0.59748886]
[1772895655182,0.57904283,1987.2,1986.2,0.59748886]
[1772895655481,0.57904283,1987.0,1986.2,0.59748886]
[1772895658889,0.57904283,1987.2,1986.2,0.59748886]
[1772895661587,0.57904283,1987.2,1986.2,8.40265235]
[1772895661890,0.57904283,1987.2,1986.3,0.58556485]
[1772895681396,0.55858925,1987.0,1986.2,7.80516349]
[1772895681598,0.55858925,1987.0,1986.2,0.54093727]
[1772895681798,0.55858925,1986.6,1986.2,0.54093727]
[1772895682198,0.55858925,1986.6,1986.1,0.54490416]
[1772895684197,0.55858925,1986.6,1986.1,0.00396689]
[1772895686098,0.55858925,1986.2,1985.6,0.54093727]
[1772895686494,1.77358642,1986.3,1985.2,16.533]
[1772895686495,0.55858925,1986.0,1985.3,7.80516349]
[1772895686701,0.55858925,1986.0,1985.4,0.54093727]
[1772895686901,0.55858925,1986.0,1985.4,0.54460111]
[1772895689199,0.55858925,1985.8,1985.4,0.54460111]
[1772895689499,0.5643479,1985.8,1985.4,0.00366384]
[1772895691206,0.55858925,1985.6,1985.0,0.54093727]
[1772895692008,0.55858925,1985.6,1985.0,0.5467832]
[1772895694402,0.55606741,1985.8,1985.2,0.56049314]
[1772895695005,0.00575865,1985.8,1985.2,0.56049314]
[1772895695900,0.55606741,1985.8,1985.2,0.56049314]
[1772895700811,0.55030876,1985.6,1985.0,0.56633907]
[1772895701305,0.55030876,1985.6,1985.0,0.00584593]
[1772895703518,0.55030876,1985.4,1984.6,0.56049314]
[1772895704018,0.55030876,1985.5,1984.9,1.77358642]
[1772895704221,0.55030876,1985.7,1985.0,0.56049314]
[1772895704517,0.55030876,1985.7,1985.0,0.56697965]
[1772895706519,0.55606741,1985.8,1985.2,0.56049314]
[1772895710125,0.55606741,1985.8,1985.0,0.56697965]
[1772895714525,0.55606741,1985.8,1984.7,0.56049314]
[1772895714526,0.55030876,1985.4,1984.7,0.56049314]
[1772895715023,0.55030876,1985.4,1984.7,2.33407956]
[1772895715623,0.55030876,1985.4,1984.8,0.56049314]
[1772895717031,0.55030876,1985.6,1985.0,0.56049314]
[1772895717325,0.55030876,1985.6,1985.1,0.56049314]
[1772895719222,0.55030876,1985.6,1985.0,0.56049314]
[1772895722540,0.58387915,1985.4,1984.8,0.56899644]
[1772895724741,0.58387915,1985.4,1984.7,0.57493159]
[1772895724941,0.58387915,1985.0,1984.3,0.56899644]
[1772895725248,0.58387915,1984.8,1984.3,0.56899644]
[1772895725541,0.58387915,1984.8,1984.0,0.56899644]
[1772895725947,0.58387915,1984.6,1984.0,0.57359838]
[1772895726140,0.58387915,1984.6,1984.0,2.3471848]
[1772895726342,0.58387915,1985.0,1984.1,0.56899644]
[1772895727745,0.58387915,1985.0,1984.0,0.57359838]
[1772895728049,0.58387915,1984.8,1984.0,0.57359838]
[1772895728347,0.58387915,1984.8,1984.0,0.00460194]
[1772895728543,0.58387915,1984.8,1984.0,0.57359838]
[1772895728847,0.58387915,1984.6,1984.0,0.57359838]
[1772895730245,0.58387915,1984.6,1984.0,0.00460194]
[1772895731049,0.58387915,1985.1,1984.0,0.57359838]
[1772895742950,0.58387915,1985.1,1984.1,0.56899644]
[1772895746457,0.58387915,1985.1,1984.3,0.56899644]
[1772895749066,0.58387915,1985.5,1984.6,0.56899644]
[1772895756369,0.56747508,1985.7,1984.9,0.54965895]
[1772895757271,0.56747508,1985.7,1985.0,0.54965895]
[1772895763974,0.57323373,1985.8,1985.2,0.54965895]
[1772895765376,0.3581975,1986.4,1985.2,0.54965895]
[1772895765579,0.18372336,1986.3,1985.2,0.54965895]
[1772895766474,0.18790345,1986.3,1985.2,0.54965895]
[1772895780890,0.18397832,1986.1,1985.2,0.54965895]
[1772895786894,0.17360229,1985.9,1985.2,0.54965895]
[1772895787791,0.1738488,1985.7,1984.9,0.59206501]
[1772895788096,5.77971432,1985.6,1984.9,0.59206501]
[1772895788297,5.95382592,1985.6,1984.9,0.59206501]
[1772895788598,0.1741116,1985.6,1984.9,0.59206501]
[1772895790189,0.1741116,1985.6,1984.5,0.59206501]
[1772895790586,8.37274317,1985.8,1984.5,0.59206501]
[1772895790587,0.17761264,1985.4,1984.5,0.59206501]
[1772895800613,0.18527243,1985.3,1984.5,0.59206501]
[1772895801112,0.18527243,1985.3,1984.6,0.59206501]
[1772895803911,0.21597336,1985.2,1984.6,0.59206501]
[1772895806414,0.21666819,1985.4,1984.6,0.59206501]
[1772895808913,0.21784966,1985.6,1984.8,0.59206501]
[1772895810418,0.21825177,1985.4,1984.8,0.59206501]
[1772895811014,1.77712758,1985.5,1984.8,0.59206501]
[1772895811221,1.99557014,1985.5,1984.8,0.59206501]
[1772895811418,0.21844256,1985.4,1984.8,0.59206501]
[1772895815126,0.21789208,1985.6,1984.8,0.59206501]
[1772895815321,5.78136213,1985.5,1984.8,0.59206501]
[1772895815623,0.21789208,1985.6,1984.8,0.59206501]
[1772895815825,5.99925421,1985.5,1984.8,0.59206501]
[1772895816122,0.21789208,1985.5,1984.8,0.59206501]
[1772895816324,0.21808072,1985.7,1985.0,0.55232193]
[1772895816524,0.21808072,1985.7,1985.2,0.55232193]
[1772895817721,0.21823683,1985.9,1985.2,0.55232193]
[1772895817916,6.00510517,1985.8,1985.2,0.55232193]
[1772895818121,0.21823683,1985.8,1985.2,0.55232193]
[1772895818320,0.21842318,1986.1,1985.4,0.55232193]
[1772895818524,0.21842318,1986.1,1985.4,0.55612904]
[1772895818525,5.78524432,1986.0,1985.4,0.55612904]
[1772895818723,0.21842318,1986.1,1985.4,0.55612904]
[1772895818925,6.00427625,1986.0,1985.4,0.55612904]
[1772895819124,0.21903193,1986.0,1985.4,0.55612904]
[1772895824126,6.596,1986.2,1985.4,0.55612904]
[1772895824330,6.86527107,1986.2,1985.4,0.55612904]
[1772895824730,0.26927107,1986.1,1985.4,0.55612904]
[1772895826529,6.596,1986.2,1985.4,0.55612904]
[1772895826831,6.86391275,1986.2,1985.4,0.55612904]
[1772895827434,0.26855687,1986.1,1985.4,0.55612904]
[1772895833231,0.00418009,1986.3,1985.6,0.55232193]
[1772895833738,0.26881653,1986.3,1985.6,0.55232193]
[1772895834236,0.00418009,1986.3,1985.8,0.55232193]
[1772895835034,0.25926495,1986.3,1985.8,0.55232193]
[1772895837843,0.00418009,1986.3,1985.8,0.55232193]
[1772895848052,0.25713394,1986.3,1985.8,0.55232193]
[1772895851050,0.00418009,1986.3,1985.8,0.55232193]
[1772895852556,0.2532514,1986.3,1985.8,0.55232193]
[1772895855856,0.24808699,1986.1,1985.4,0.00380711]
[1772895864958,6.33289534,1986.5,1985.4,0.00380711]
[1772895865154,0.56495113,1987.0,1985.9,1.77546264]
[1772895865956,0.56881734,1987.0,1985.8,6.2615995]
[1772895866151,0.56495113,1986.9,1985.8,6.2615995]
[1772895866954,0.56495113,1986.9,1985.7,6.2615995]
[1772895867158,0.56495113,1986.8,1985.7,6.2615995]
[1772895867755,0.56495113,1986.8,1985.6,6.2615995]
[1772895868255,0.56495113,1986.8,1985.5,22.7405995]
[1772895869760,7.16195113,1986.8,1985.6,8.03706214]
[1772895869958,0.56495113,1986.7,1985.6,8.03706214]
[1772895871262,0.56495113,1986.7,1985.6,6.2615995]
[1772895872764,0.56495113,1986.7,1985.5,22.7405995]
[1772895875058,0.56495113,1986.7,1985.7,6.2615995]
[1772895878960,0.58414135,1986.6,1985.7,6.2615995]
[1772895879359,0.58414135,1986.6,1985.6,6.2615995]
[1772895880059,0.58414135,1986.9,1985.8,1.77546264]
[1772895880261,0.58414135,1986.8,1985.8,1.77546264]
[1772895881066,0.58414135,1986.8,1985.7,6.2615995]
[1772895884164,0.58414135,1986.8,1985.7,0.55042784]
[1772895884760,0.58414135,1986.6,1985.7,0.55042784]
[1772895885466,0.58414135,1986.5,1985.7,0.55042784]
[1772895885668,0.58414135,1986.3,1985.5,0.55042784]
[1772895885868,0.58414135,1986.1,1985.5,0.55042784]
[1772895892172,0.58414135,1986.1,1985.4,0.00380711]
[1772895892373,0.58414135,1986.1,1985.3,0.55042784]
[1772895892774,0.58414135,1986.1,1985.1,0.55042784]
[1772895893472,0.58414135,1986.1,1985.1,0.55517165]
[1772895894870,0.58414135,1985.9,1985.1,0.55517165]
[1772895895072,0.58414135,1985.9,1985.1,0.00474381]
[1772895895274,0.58414135,1985.9,1985.1,0.55517165]
[1772895896073,0.58414135,1985.9,1985.1,0.00474381]
[1772895898975,0.58414135,1985.9,1985.1,0.55517165]
[1772895899174,7.18214135,1986.0,1985.1,0.55517165]
[1772895900483,0.55992103,1985.9,1985.1,0.55517165]
[1772895900979,0.55992103,1985.7,1985.1,0.55517165]
[1772895902986,0.55992103,1985.7,1984.7,0.60674983]
[1772895903980,0.55992103,1985.7,1984.7,0.61239005]
[1772895904587,0.55783798,1985.5,1984.7,0.61239005]
[1772895904783,0.55783798,1985.4,1984.7,0.61239005]
[1772895906786,0.55783798,1985.2,1984.4,0.60674983]
[1772895906989,6.598,1985.2,1984.4,0.60674983]
[1772895907387,7.15583798,1985.3,1984.4,0.60674983]
[1772895907784,0.0063148,1985.5,1984.4,0.61145786]
[1772895907785,0.55783798,1985.2,1984.4,0.61145786]
[1772895910988,0.55783798,1985.2,1984.4,0.00470803]
[1772895911490,0.55783798,1985.0,1984.0,0.60674983]
[1772895912490,0.55783798,1985.0,1984.0,0.61078635]
[1772895913894,0.55783798,1984.9,1984.0,0.61078635]
[1772895917701,7.15683798,1984.9,1984.0,0.61078635]
[1772895918092,0.55783798,1984.8,1984.0,0.61078635]
[1772895919899,0.55783798,1985.0,1984.0,0.61078635]
[1772895928108,0.55783798,1984.8,1984.0,0.61078635]
[1772895930915,0.55783798,1985.0,1984.0,0.61078635]
[1772895932012,6.599,1985.3,1984.0,6.26563602]
[1772895932211,0.59437431,1985.2,1984.2,0.61509022]
[1772895935218,0.59437431,1985.2,1984.3,0.61509022]
[1772895942423,0.59437431,1985.2,1984.4,1.77708115]
[1772895942629,0.59437431,1985.2,1984.5,0.61509022]
[1772895943829,5.99311365,1985.5,1984.7,0.61509022]
[1772895943830,0.59437431,1985.3,1984.7,0.61509022]
[1772895947725,0.59437431,1985.3,1984.3,6.2615995]
[1772895947726,4.81632287,1985.9,1985.0,0.61509022]
[1772895948026,0.03816746,1985.9,1985.3,0.61509022]
[1772895948230,0.59437431,1985.8,1985.3,0.61509022]
[1772895948727,0.59437431,1985.6,1985.3,0.61509022]
[1772895949430,0.59437431,1985.7,1985.3,0.61509022]
[1772895949832,5.03561744,1985.7,1985.3,0.61509022]
[1772895950032,0.59437431,1985.7,1985.3,0.61509022]
[1772895950330,5.03561744,1985.7,1985.3,0.61509022]
[1772895951233,0.59437431,1985.6,1985.3,0.61509022]
[1772895951435,4.44124313,1985.7,1985.3,0.61509022]
[1772895952033,5.03561744,1985.7,1985.3,0.61509022]
[1772895958741,11.63261744,1985.7,1985.3,0.61509022]
[1772895959339,0.59437431,1986.8,1985.6,0.61509022]
[1772895959534,0.59437431,1986.6,1985.9,0.61509022]
[1772895960543,0.60044086,1986.6,1985.9,0.62031051]
[1772895962144,0.81676301,1986.5,1985.9,0.62031051]
[1772895962343,6.597,1986.4,1985.9,0.62031051]
[1772895962535,7.40789732,1986.4,1985.9,0.62031051]
[1772895962938,0.00586569,1986.3,1986.1,0.81484175]
[1772895963143,6.60286569,1986.5,1986.1,0.81484175]
[1772895963345,0.81696387,1986.6,1986.1,0.81484175]
[1772895963540,7.41396387,1986.6,1986.1,0.81484175]
[1772895965045,0.81089732,1986.5,1986.1,0.81484175]
[1772895966747,6.597,1986.5,1986.1,0.81484175]
[1772895971245,0.81696387,1986.6,1986.1,0.81484175]
[1772895971246,0.00606655,1986.6,1986.1,0.81484175]
[1772895971546,0.00606655,1986.6,1986.3,0.81484175]
[1772895971748,6.597,1986.7,1986.3,0.81484175]
[1772895972642,6.6007405,1986.7,1986.3,0.81484175]
[1772895972840,0.0037405,1986.7,1986.3,0.81484175]
[1772895973045,6.597,1986.9,1986.5,0.81484175]
[1772895973347,6.597,1987.0,1986.5,0.81484175]
[1772895973744,7.40789732,1987.3,1986.7,0.81484175]
[1772895973949,0.00353317,1987.3,1986.7,0.81484175]
[1772895974144,0.81443049,1987.3,1986.7,0.81484175]
[1772895976646,0.00353317,1987.3,1986.7,0.81484175]
[1772895977241,0.81443049,1987.3,1986.7,0.81484175]
[1772895980750,0.00353317,1987.3,1986.7,0.81484175]
[1772895981354,0.81089732,1987.6,1986.7,0.81484175]
[1772895982350,0.81652612,1987.6,1986.7,0.81484175]
[1772895982751,0.81089732,1988.2,1987.2,0.81484175]
[1772895983156,0.81652612,1988.2,1987.2,0.81484175]
[1772895983461,0.81089732,1988.1,1987.3,0.81484175]
[1772895983653,0.81089732,1987.9,1987.3,0.00634682]
[1772895983956,0.81089732,1987.9,1987.1,0.81484175]
[1772895984157,0.81089732,1987.6,1987.1,0.81484175]
[1772895984554,0.81652612,1987.5,1987.1,0.81484175]
[1772895984754,0.81089732,1987.5,1987.1,0.81484175]
[1772895985051,0.81652612,1987.5,1987.1,0.00537719]
[1772895985356,0.81089732,1987.5,1986.8,0.81484175]
[1772895985556,0.0056288,1987.3,1986.8,0.81484175]
[1772895985759,0.81089732,1987.2,1986.8,0.81484175]
[1772895986152,0.81652612,1987.2,1986.8,0.82065394]
[1772895986351,0.81089732,1987.2,1986.2,0.81484175]
[1772895987261,0.81089732,1987.4,1986.2,0.82075226]
[1772895991465,0.81089732,1987.4,1986.4,0.81484175]
[1772895991863,0.81652612,1987.4,1986.4,0.81484175]
[1772895993966,0.755497,1987.1,1986.4,0.81484175]
[1772895994359,0.0056288,1987.0,1986.4,0.81484175]
[1772895994564,0.755497,1986.9,1986.3,0.71015929]
[1772895995067,0.755497,1986.5,1986.2,0.00591051]
[1772895995266,0.76135442,1986.5,1985.9,0.71015929]
[1772895995866,0.76698322,1986.5,1985.9,0.71015929]
[1772895996369,0.76698322,1986.5,1985.9,0.71411566]
[1772895997365,0.7611258,1986.4,1985.9,0.71411566]
[1772895998771,0.755497,1986.2,1985.9,0.71411566]
[1772895999068,0.00585742,1986.5,1985.9,0.71411566]
[1772896000870,0.755497,1987.1,1986.0,0.71015929]
[1772896001070,0.7611258,1987.1,1986.0,0.71015929]
[1772896001266,0.755497,1987.1,1986.1,0.71015929]
[1772896001467,0.755497,1986.9,1986.1,0.71015929]
[1772896001669,0.75960861,1986.9,1986.1,0.71015929]